bitfinex/quotes_BTCUSD_20251217
["timestamp","ask_amount","ask_price","bid_price","bid_amount"]
[1765957999617,0.04741052,87104.0,87101.0,0.01148092]
[1765957999618,0.01816,87104.0,87101.0,0.01148092]
[1765957999840,0.02964052,87104.0,87101.0,0.01148092]
[1765958000041,0.01148079,87102.0,87099.0,0.01148118]
[1765958001170,0.01148066,87103.0,87099.0,0.01148118]
[1765958001371,0.02447052,87104.0,87100.0,0.01148105]
[1765958001486,0.02347052,87104.0,87100.0,0.24110002]
[1765958002133,0.01199,87104.0,87103.0,0.22961321]
[1765958002382,0.0001128,87105.0,87103.0,0.22961321]
[1765958002887,0.0001128,87105.0,87102.0,0.01148079]
[1765958003060,0.0238128,87105.0,87102.0,0.01148079]
[1765958003427,0.001,87104.0,87102.0,0.01148079]
[1765958003822,0.0001128,87105.0,87102.0,0.01148079]
[1765958004377,0.0011128,87105.0,87102.0,0.01148079]
[1765958005055,0.0011128,87105.0,87102.0,0.24109451]
[1765958005446,0.0011128,87105.0,87103.0,0.2296114]
[1765958005664,0.0021128,87105.0,87103.0,0.2296114]
[1765958006478,0.0011128,87105.0,87103.0,0.2296114]
[1765958006718,0.0021128,87105.0,87103.0,0.2296114]
[1765958007018,0.0011128,87105.0,87103.0,0.2296114]
[1765958007181,0.0021128,87105.0,87103.0,0.2296114]
[1765958007377,0.0021128,87105.0,87104.0,0.16686236]
[1765958007566,0.0021128,87105.0,87104.0,0.15308573]
[1765958007963,0.0021128,87105.0,87103.0,0.23122427]
[1765958008416,0.0011128,87105.0,87103.0,0.23122427]
[1765958008590,0.23072254,87105.0,87103.0,0.00161287]
[1765958008790,0.23072254,87105.0,87098.0,0.01148131]
[1765958008791,0.0237,87101.0,87098.0,0.01148131]
[1765958008998,0.05122,87099.0,87098.0,0.01148131]
[1765958009271,0.05122,87099.0,87092.0,0.00947]
[1765958009482,0.26481539,87096.0,87092.0,0.01148211]
[1765958009685,0.26481539,87096.0,87083.0,0.12655902]
[1765958009686,0.01148224,87091.0,87083.0,0.12655902]
[1765958009885,0.01148224,87091.0,87084.0,0.01148316]
[1765958009886,0.01148277,87087.0,87084.0,0.01148316]
[1765958010935,0.01148277,87087.0,87084.0,0.002]
[1765958011184,0.22965803,87086.0,87084.0,0.002]
[1765958011744,0.22965803,87086.0,87084.0,0.001]
[1765958012753,0.2411466,87084.0,87081.0,0.01148356]
[1765958012946,0.01148316,87084.0,87081.0,0.01148356]
[1765958013907,0.01148316,87084.0,87080.0,0.24115506]
[1765958014217,0.01148316,87084.0,87081.0,0.001]
[1765958014367,0.01148316,87084.0,87081.0,0.002]
[1765958014569,0.0349429,87086.0,87081.0,0.24315241]
[1765958014777,0.0349429,87086.0,87081.0,0.24115241]
[1765958014975,0.0349429,87086.0,87083.0,0.01148329]
[1765958015178,0.24114058,87087.0,87083.0,0.01148329]
[1765958016010,0.0114829,87086.0,87083.0,0.01148329]
[1765958017365,0.0114829,87086.0,87083.0,0.01248329]
[1765958019912,0.01148211,87092.0,87088.0,0.02492]
[1765958020131,0.01148184,87094.0,87091.0,0.00947]
[1765958020759,0.22963562,87095.0,87091.0,0.02095224]
[1765958020905,0.01148158,87096.0,87091.0,0.02095224]
[1765958021730,0.01148158,87096.0,87092.0,0.01148211]
[1765958023001,0.01248158,87096.0,87092.0,0.01148211]
[1765958023201,0.01148158,87096.0,87092.0,0.01148211]
[1765958023409,0.01148171,87095.0,87092.0,0.01148211]
[1765958023609,0.01148171,87095.0,87093.0,0.11507573]
[1765958024086,0.01148171,87095.0,87092.0,0.01148211]
[1765958025161,0.01248171,87095.0,87092.0,0.01148211]
[1765958025770,0.01148184,87094.0,87091.0,0.00947]
[1765958025977,0.22964592,87091.0,87087.0,0.12389573]
[1765958026180,0.22964592,87091.0,87087.0,0.00882]
[1765958026381,0.01148237,87090.0,87087.0,0.02030277]
[1765958026787,0.22965012,87089.0,87087.0,0.00882]
[1765958026997,0.24114179,87086.0,87083.0,0.00161287]
[1765958027409,0.25228229,87085.0,87083.0,0.00161287]
[1765958027609,0.05135,87084.0,87083.0,0.00161287]
[1765958027912,0.02873,87084.0,87083.0,0.00161287]
[1765958028137,0.0123,87084.0,87083.0,0.00161287]
[1765958029625,0.22966229,87085.0,87083.0,0.00161287]
[1765958030468,0.22966229,87085.0,87083.0,0.00261287]
[1765958030669,0.22966229,87085.0,87083.0,0.00361287]
[1765958030885,0.22966229,87085.0,87083.0,0.00261287]
[1765958031044,0.22966229,87085.0,87083.0,0.00161287]
[1765958031252,0.22966229,87085.0,87083.0,0.00261287]
[1765958033360,0.05135,87084.0,87083.0,0.00261287]
[1765958035573,0.05135,87084.0,87083.0,0.00161287]
[1765958036927,0.22967386,87080.0,87079.0,0.001]
[1765958038831,0.22967386,87080.0,87079.0,0.002]
[1765958040330,0.24115355,87082.0,87079.0,0.002]
[1765958040768,0.24196714,87084.0,87082.0,0.02492]
[1765958040769,0.2411503,87084.0,87082.0,0.02492]
[1765958040921,0.01148329,87083.0,87082.0,0.04083]
[1765958041127,0.01148329,87083.0,87082.0,0.01591]
[1765958041678,0.22966858,87082.0,87081.0,0.00882]
[1765958045162,0.01148329,87083.0,87081.0,0.01043287]
[1765958046651,0.24115136,87083.0,87081.0,0.01043287]
[1765958048246,0.24115136,87083.0,87081.0,0.00161287]
[1765958048466,0.26510136,87083.0,87081.0,0.00161287]
[1765958048689,0.03923,87082.0,87081.0,0.00161287]
[1765958048931,0.01528,87082.0,87081.0,0.00161287]
[1765958049963,0.0237825,87089.0,87083.0,0.01148329]
[1765958050115,0.01148277,87087.0,87084.0,0.01148316]
[1765958050326,0.01148263,87088.0,87085.0,0.01148303]
[1765958050758,0.0114829,87086.0,87083.0,0.01148329]
[1765958050971,0.26509238,87086.0,87083.0,0.01148329]
[1765958051216,0.0114829,87086.0,87083.0,0.01148329]
[1765958051639,0.01148277,87087.0,87084.0,0.01148316]
[1765958053304,0.01148277,87087.0,87084.0,0.24114494]
[1765958053479,0.0114825,87089.0,87085.0,0.24114188]
[1765958053709,0.0114825,87089.0,87085.0,0.01148303]
[1765958054068,0.0114825,87089.0,87086.0,0.22965657]
[1765958054326,0.0114825,87089.0,87085.0,0.24114368]
[1765958054759,0.0124825,87089.0,87086.0,0.0114829]
[1765958055082,0.002,87089.0,87087.0,0.22965317]
[1765958055603,0.001,87089.0,87087.0,0.22965317]
[1765958056157,0.002,87089.0,87087.0,0.22965317]
[1765958056360,0.01148211,87092.0,87088.0,0.2411334]
[1765958056569,0.02964211,87092.0,87088.0,0.01148263]
[1765958056779,0.001,87089.0,87088.0,0.01148263]
[1765958057156,0.01148224,87091.0,87088.0,0.01148263]
[1765958057699,0.001,87089.0,87088.0,0.01148263]
[1765958057862,0.01148224,87091.0,87088.0,0.01148263]
[1765958058282,0.01348224,87091.0,87088.0,0.01148263]
[1765958058483,0.01248224,87091.0,87088.0,0.01148263]
[1765958058927,0.001,87089.0,87088.0,0.01148263]
[1765958059264,0.01248224,87091.0,87088.0,0.01148263]
[1765958059448,0.24312888,87091.0,87087.0,0.24113594]
[1765958059913,0.24212888,87091.0,87087.0,0.24113594]
[1765958060210,0.001,87089.0,87087.0,0.24113594]
[1765958060767,0.01148237,87090.0,87087.0,0.24113594]
[1765958061212,0.001,87089.0,87087.0,0.24113594]
[1765958061413,0.03046,87094.0,87088.0,0.01148263]
[1765958061569,0.0123,87094.0,87092.0,0.22964118]
[1765958062017,0.02378184,87094.0,87088.0,0.24113539]
[1765958062457,0.01148184,87094.0,87090.0,0.01148237]
[1765958062657,0.2411179,87095.0,87091.0,0.24112511]
[1765958062988,0.001,87094.0,87091.0,0.24112511]
[1765958063603,0.001,87094.0,87092.0,0.01148211]
[1765958064182,0.24111663,87095.0,87092.0,0.01148211]
[1765958064465,0.001,87094.0,87092.0,0.01148211]
[1765958064666,0.002,87094.0,87092.0,0.01148211]
[1765958064852,0.24312025,87094.0,87089.0,0.0114825]
[1765958065051,0.01148197,87093.0,87090.0,0.01148237]
[1765958065253,0.03543197,87093.0,87090.0,0.01148237]
[1765958066484,0.02395,87093.0,87090.0,0.01148237]
[1765958066690,0.02346184,87094.0,87091.0,0.01148224]
[1765958067231,0.001,87093.0,87091.0,0.01148224]
[1765958067472,0.002,87093.0,87091.0,0.24112573]
[1765958067721,0.001,87093.0,87091.0,0.24112573]
[1765958068101,0.02446184,87094.0,87091.0,0.24112573]
[1765958068397,0.001,87093.0,87091.0,0.24112573]
[1765958068536,0.002,87093.0,87091.0,0.24112573]
[1765958069466,0.001,87093.0,87091.0,0.24112573]
[1765958070113,0.001,87093.0,87091.0,0.01148224]
[1765958071302,0.002,87093.0,87091.0,0.01148224]
[1765958071730,0.01348197,87093.0,87090.0,0.01148237]
[1765958071900,0.01148224,87091.0,87086.0,0.24996061]
[1765958072099,0.25311306,87089.0,87082.0,0.22966746]
[1765958072327,0.01148277,87087.0,87084.0,0.01148316]
[1765958073312,0.02067239,87086.0,87083.0,0.24114671]
[1765958073582,0.01198,87084.0,87082.0,0.00161287]
[1765958074582,0.2411454,87085.0,87082.0,0.00161287]
[1765958074973,0.01588,87083.0,87082.0,0.00161287]
[1765958075350,0.22966559,87084.0,87082.0,0.00161287]
[1765958076394,0.02372,87088.0,87084.0,0.01148316]
[1765958076618,0.01148263,87088.0,87084.0,0.01148316]
[1765958077045,0.01198,87089.0,87085.0,0.01148303]
[1765958077621,0.001,87088.0,87086.0,0.0114829]
[1765958078926,0.0234625,87089.0,87086.0,0.0114829]
[1765958079267,0.01298,87089.0,87086.0,0.0114829]
[1765958079792,0.03589,87089.0,87086.0,0.0114829]
[1765958080145,0.03689,87089.0,87086.0,0.0114829]
[1765958080353,0.01298,87089.0,87086.0,0.0114829]
[1765958080750,0.03789,87089.0,87086.0,0.0114829]
[1765958081175,0.02391,87088.0,87086.0,0.0114829]
[1765958081716,0.02391,87088.0,87086.0,0.24113837]
[1765958081920,0.01398,87089.0,87086.0,0.24113837]
[1765958082116,0.01298,87089.0,87086.0,0.24113837]
[1765958082365,0.001,87088.0,87086.0,0.24113837]
[1765958082963,0.03689,87089.0,87086.0,0.24113837]
[1765958083507,0.03689,87089.0,87087.0,0.22965367]
[1765958083644,0.03589,87089.0,87087.0,0.22965367]
[1765958083844,0.01198,87089.0,87087.0,0.22965367]
[1765958084060,0.02491,87088.0,87086.0,0.24113837]
[1765958084254,0.001,87088.0,87086.0,0.24113837]
[1765958085772,0.01274,87089.0,87086.0,0.24113837]
[1765958085948,0.0481325,87089.0,87086.0,0.0114829]
[1765958086309,0.0242225,87089.0,87086.0,0.0114829]
[1765958086530,0.0232225,87089.0,87086.0,0.0114829]
[1765958086876,0.0481325,87089.0,87086.0,0.0114829]
[1765958087094,0.0491325,87089.0,87086.0,0.0114829]
[1765958087284,0.03765,87089.0,87086.0,0.2411393]
[1765958087693,0.01374,87089.0,87086.0,0.2411393]
[1765958087899,0.03765,87089.0,87086.0,0.2411393]
[1765958088504,0.01374,87089.0,87086.0,0.2411393]
[1765958090070,0.01374,87089.0,87086.0,0.35621503]
[1765958090648,0.01374,87089.0,87086.0,0.2411393]
[1765958090853,0.01374,87089.0,87086.0,0.0114829]
[1765958091051,0.01374,87089.0,87087.0,0.22965304]
[1765958091275,0.002,87089.0,87088.0,0.00882]
[1765958091660,0.002,87089.0,87088.0,0.1650686]
[1765958092008,0.001,87089.0,87088.0,0.1418186]
[1765958092208,0.001,87089.0,87088.0,0.02674287]
[1765958092558,0.001,87089.0,87088.0,0.17884776]
[1765958092761,0.0550722,87108.0,87088.0,0.17884776]
[1765958092762,0.01148079,87102.0,87098.0,0.01148131]
[1765958092943,0.01148066,87103.0,87098.0,0.01148131]
[1765958093138,0.22961585,87102.0,87098.0,0.01148131]
[1765958093341,0.01148092,87101.0,87098.0,0.01148131]
[1765958093541,0.01148092,87101.0,87092.0,0.12655784]
[1765958093542,0.01148158,87096.0,87092.0,0.12655784]
[1765958093886,0.01148171,87095.0,87092.0,0.01148211]
[1765958094701,0.24111027,87098.0,87093.0,0.24111989]
[1765958094905,0.24111027,87098.0,87094.0,0.01148184]
[1765958096424,0.02322118,87099.0,87095.0,0.01148171]
[1765958096565,0.02322118,87099.0,87096.0,0.01148158]
[1765958097281,0.01174,87099.0,87097.0,0.22962903]
[1765958097485,0.01148066,87103.0,87098.0,0.241106]
[1765958097486,0.24109573,87103.0,87098.0,0.241106]
[1765958098104,0.24109573,87103.0,87099.0,0.01148118]
[1765958098478,0.01148066,87103.0,87100.0,0.01148105]
[1765958098756,0.03565,87104.0,87101.0,0.2410994]
[1765958098966,0.001,87103.0,87101.0,0.2410994]
[1765958099342,0.03565,87104.0,87101.0,0.2410994]
[1765958099549,0.02391,87103.0,87101.0,0.2410994]
[1765958099753,0.02491,87103.0,87101.0,0.2410994]
[1765958100050,0.02491,87103.0,87101.0,0.01148092]
[1765958100255,0.02491,87103.0,87101.0,0.24109781]
[1765958100411,0.001,87103.0,87101.0,0.24109781]
[1765958101085,0.01274,87104.0,87103.0,0.22961321]
[1765958101528,0.01374,87104.0,87103.0,0.22961321]
[1765958101751,0.002,87104.0,87103.0,0.22961321]
[1765958101988,0.0001128,87105.0,87103.0,0.03956]
[1765958102226,0.001,87104.0,87103.0,0.03956]
[1765958102715,0.0001128,87105.0,87104.0,0.22961058]
[1765958103147,0.0011128,87105.0,87104.0,0.22961058]
[1765958103585,0.0011128,87105.0,87104.0,0.24592058]
[1765958104315,0.0001128,87105.0,87104.0,0.24592058]
[1765958104529,0.0001128,87105.0,87104.0,0.26844058]
[1765958104750,0.0011128,87105.0,87104.0,0.26844058]
[1765958105250,0.0021128,87105.0,87104.0,0.26844058]
[1765958105488,0.0011128,87105.0,87104.0,0.38351631]
[1765958105695,0.0001128,87105.0,87104.0,0.38351631]
[1765958106956,0.0001128,87105.0,87104.0,0.38512918]
[1765958108628,0.0001128,87105.0,87104.0,0.38612918]
[1765958111432,0.0001128,87105.0,87104.0,0.38512918]
[1765958111663,0.0001128,87105.0,87104.0,0.38912918]
[1765958112001,0.0001128,87105.0,87104.0,0.41897918]
[1765958113831,0.0001128,87105.0,87104.0,0.39645918]
[1765958114049,0.0001128,87105.0,87104.0,0.41897918]
[1765958114813,0.0001128,87105.0,87104.0,0.41497918]
[1765958115013,0.0001128,87105.0,87104.0,0.41797918]
[1765958125090,0.0001128,87105.0,87104.0,0.30290345]
[1765958126064,0.0001128,87105.0,87104.0,0.41797918]
[1765958130077,0.0001128,87105.0,87104.0,0.70867918]
[1765958133734,0.24101593,87132.0,87104.0,0.70867918]
[1765958133735,0.0002,87162.0,87161.0,0.03311]
[1765958133935,0.00057663,87162.0,87161.0,0.39741902]
[1765958134321,0.00057663,87162.0,87161.0,0.37851615]
[1765958134506,0.00057663,87162.0,87161.0,0.2680373]
[1765958134706,0.00057663,87162.0,87161.0,0.2340573]
[1765958139485,0.00252587,87162.0,87161.0,0.2340573]
[1765958140025,0.00252587,87162.0,87161.0,0.26858017]
[1765958141401,0.00252587,87162.0,87161.0,0.3836559]
[1765958141601,0.00252587,87162.0,87161.0,0.25129017]
[1765958141726,0.00252587,87162.0,87161.0,0.3663659]
[1765958142363,0.00252587,87162.0,87161.0,0.3836559]
[1765958146478,0.00252587,87162.0,87161.0,0.28674017]
[1765958147697,0.00252587,87162.0,87161.0,0.31587345]
[1765958147937,0.0002,87164.0,87163.0,0.26236515]
[1765958148067,0.00031291,87164.0,87163.0,0.37905375]
[1765958149370,0.00031291,87164.0,87163.0,0.38365089]
[1765958150114,0.00031291,87164.0,87163.0,0.26857516]
[1765958150533,0.00131291,87164.0,87163.0,0.26857516]
[1765958151352,0.00131291,87164.0,87163.0,0.38365089]
[1765958151666,0.00131291,87164.0,87163.0,0.40181089]
[1765958151868,0.00120695,87164.0,87163.0,0.27111516]
[1765958152070,0.00120695,87164.0,87163.0,0.28673516]
[1765958155241,0.00120695,87164.0,87163.0,0.40181089]
[1765958159823,0.00020695,87164.0,87163.0,0.40181089]
[1765958160051,0.00020695,87164.0,87163.0,0.69251089]
[1765958160818,0.0002,87168.0,87167.0,0.43868573]
[1765958160995,0.0002,87168.0,87167.0,0.66974322]
[1765958163705,0.0012,87168.0,87167.0,0.66974322]
[1765958163936,0.0012,87168.0,87167.0,0.36425322]
[1765958164411,0.0012,87168.0,87167.0,0.38068322]
[1765958164614,0.0002,87168.0,87167.0,0.39797322]
[1765958164995,0.0012,87168.0,87167.0,0.39797322]
[1765958165212,0.0002,87168.0,87167.0,0.39797322]
[1765958165765,0.0012,87168.0,87167.0,0.39797322]
[1765958166376,0.0012,87168.0,87167.0,0.13319573]
[1765958167126,0.0012,87168.0,87165.0,0.24092013]
[1765958167127,0.01267209,87168.0,87165.0,0.01147249]
[1765958167348,0.0012,87168.0,87165.0,0.24092113]
[1765958167586,0.0012,87168.0,87166.0,0.22944504]
[1765958168556,0.0002,87168.0,87166.0,0.22944504]
[1765958168898,0.0012,87168.0,87166.0,0.22944504]
[1765958170226,0.0002,87168.0,87166.0,0.22944504]
[1765958170422,0.01167209,87168.0,87165.0,0.01147249]
[1765958170650,0.0012,87168.0,87165.0,0.01147249]
[1765958171025,0.0012,87168.0,87166.0,0.22944726]
[1765958171448,0.0002,87168.0,87166.0,0.22944726]
[1765958171860,0.0012,87168.0,87166.0,0.22944726]
[1765958172090,0.0002,87168.0,87166.0,0.22944726]
[1765958173644,0.0012,87168.0,87166.0,0.22944726]
[1765958176615,0.0012,87168.0,87167.0,0.00651]
[1765958177903,0.0002,87168.0,87167.0,0.00651]
[1765958178108,0.0012,87168.0,87167.0,0.00651]
[1765958178956,0.02472,87168.0,87165.0,0.01147249]
[1765958179159,0.02472,87168.0,87165.0,0.24092033]
[1765958179570,0.0012,87168.0,87167.0,0.03372]
[1765958180133,0.0012,87168.0,87167.0,0.01643]
[1765958180336,0.0002,87168.0,87167.0,0.03372]
[1765958180545,0.0012,87168.0,87167.0,0.03372]
[1765958180755,0.0012,87168.0,87167.0,0.14879573]
[1765958180982,0.0002,87168.0,87167.0,0.14879573]
[1765958181410,0.0012,87168.0,87167.0,0.14879573]
[1765958184176,0.0012,87168.0,87167.0,0.03372]
[1765958192267,0.0012,87168.0,87167.0,0.01643]
[1765958192478,0.23064368,87168.0,87164.0,0.03038567]
[1765958193222,0.01267209,87168.0,87165.0,0.24092238]
[1765958193710,0.01167209,87168.0,87165.0,0.24092238]
[1765958193895,0.01267209,87168.0,87165.0,0.24092238]
[1765958194238,0.01167209,87168.0,87165.0,0.24092238]
[1765958194443,0.01267209,87168.0,87165.0,0.24092238]
[1765958194741,0.01147223,87167.0,87164.0,0.01226567]
[1765958195710,0.01147223,87167.0,87164.0,0.24171616]
[1765958196584,0.01247223,87167.0,87164.0,0.00079305]
[1765958196781,0.22944989,87165.0,87164.0,0.00079305]
[1765958198371,0.24091865,87167.0,87164.0,0.00079305]
[1765958198575,0.01147223,87167.0,87164.0,0.00079305]
[1765958198786,0.2409192,87167.0,87164.0,0.00079305]
[1765958199829,0.2419192,87167.0,87164.0,0.00079305]
[1765958203146,0.01247223,87167.0,87164.0,0.2417163]
[1765958203735,0.001,87167.0,87164.0,0.2417163]
[1765958205352,0.001,87167.0,87164.0,0.01226567]
[1765958205552,0.01247223,87167.0,87164.0,0.01226567]
[1765958206579,0.24191848,87167.0,87164.0,0.01226567]
[1765958207574,0.01247223,87167.0,87164.0,0.01226567]
[1765958207743,0.001,87167.0,87164.0,0.24171625]
[1765958207924,0.001,87167.0,87165.0,0.22944767]
[1765958209044,0.0002,87168.0,87165.0,0.22944767]
[1765958209232,0.0002,87168.0,87167.0,0.22944462]
[1765958209709,0.0002,87168.0,87165.0,0.24092016]
[1765958210494,0.0012,87168.0,87166.0,0.22944589]
[1765958210676,0.0002,87168.0,87166.0,0.22944589]
[1765958211263,0.0002,87168.0,87165.0,0.01147249]
[1765958211471,0.01167209,87168.0,87164.0,0.24171625]
[1765958211675,0.24111596,87168.0,87164.0,0.24171625]
[1765958212215,0.24211596,87168.0,87164.0,0.24171625]
[1765958212455,0.0012,87168.0,87165.0,0.24092077]
[1765958212626,0.0002,87168.0,87165.0,0.24092077]
[1765958213018,0.0012,87168.0,87166.0,0.22944559]
[1765958213298,0.0002,87168.0,87166.0,0.22944559]
[1765958213836,0.0012,87168.0,87166.0,0.22944559]
[1765958214156,0.0002,87168.0,87166.0,0.22944559]
[1765958215420,0.0012,87168.0,87166.0,0.22944559]
[1765958217013,0.0012,87168.0,87167.0,0.11507573]
[1765958217637,0.0012,87168.0,87166.0,0.22944559]
[1765958218325,0.0012,87168.0,87167.0,0.03277]
[1765958218496,0.0002,87168.0,87167.0,0.03277]
[1765958218936,0.0012,87168.0,87167.0,0.03277]
[1765958221644,0.0012,87168.0,87166.0,0.22944559]
[1765958221808,0.0012,87168.0,87164.0,0.2417163]
[1765958221809,0.0366,87167.0,87164.0,0.2417163]
[1765958222035,0.04807223,87167.0,87164.0,0.00079305]
[1765958222186,0.02347223,87167.0,87164.0,0.00079305]
[1765958222563,0.22944924,87166.0,87164.0,0.00079305]
[1765958223524,0.012,87167.0,87164.0,0.00079305]
[1765958223728,0.0366,87167.0,87164.0,0.00079305]
[1765958224092,0.012,87167.0,87164.0,0.00079305]
[1765958224678,0.001,87166.0,87164.0,0.01226567]
[1765958225111,0.22944726,87166.0,87164.0,0.00079305]
[1765958225946,0.23044726,87166.0,87164.0,0.00079305]
[1765958227354,0.001,87166.0,87164.0,0.00079305]
[1765958227714,0.2304476,87166.0,87164.0,0.00079305]
[1765958228562,0.001,87166.0,87164.0,0.00079305]
[1765958228933,0.001,87166.0,87164.0,0.23024321]
[1765958230140,0.001,87166.0,87164.0,0.34531894]
[1765958230338,0.001,87166.0,87165.0,0.03288]
[1765958231251,0.0002,87168.0,87166.0,0.22944726]
[1765958232662,0.0012,87168.0,87164.0,0.00079305]
[1765958232866,0.01267209,87168.0,87164.0,0.24171636]
[1765958233060,0.01147223,87167.0,87164.0,0.01226567]
[1765958233299,0.03543209,87168.0,87165.0,0.01147249]
[1765958233508,0.02396,87168.0,87165.0,0.24092086]
[1765958234159,0.03443209,87168.0,87164.0,0.01226567]
[1765958234506,0.03543209,87168.0,87164.0,0.01226567]
[1765958234706,0.03443209,87168.0,87164.0,0.24171655]
[1765958234908,0.02296,87168.0,87166.0,0.22944726]
[1765958235141,0.0012,87168.0,87166.0,0.22944726]
[1765958235342,0.0002,87168.0,87166.0,0.22944726]
[1765958235846,0.0012,87168.0,87166.0,0.22944726]
[1765958236040,0.0002,87168.0,87166.0,0.22944726]
[1765958236245,0.01515,87165.0,87164.0,0.00079305]
[1765958236470,0.03791,87165.0,87164.0,0.00079305]
[1765958237210,0.01515,87165.0,87164.0,0.00079305]
[1765958237995,0.01147223,87167.0,87164.0,0.00079305]
[1765958238200,0.24091851,87167.0,87164.0,0.00079305]
[1765958239273,0.24191851,87167.0,87164.0,0.00079305]
[1765958240053,0.02276,87165.0,87164.0,0.00079305]
[1765958240218,0.24191851,87167.0,87164.0,0.00079305]
[1765958240431,0.03791,87165.0,87164.0,0.00079305]
[1765958240937,0.01515,87165.0,87164.0,0.00079305]
[1765958241131,0.01147223,87167.0,87164.0,0.01226567]
[1765958241377,0.01147223,87167.0,87164.0,0.24171641]
[1765958241614,0.01167209,87168.0,87165.0,0.01147249]
[1765958241789,0.0002,87168.0,87165.0,0.24091984]
[1765958242575,0.001,87167.0,87166.0,0.2294454]
[1765958243654,0.0002,87168.0,87166.0,0.2294454]
[1765958243991,0.0012,87168.0,87166.0,0.2294454]
[1765958244291,0.0002,87168.0,87166.0,0.2294454]
[1765958244647,0.001,87167.0,87166.0,0.2294454]
[1765958245049,0.0002,87168.0,87166.0,0.2294454]
[1765958245254,0.0012,87168.0,87166.0,0.2294454]
[1765958245631,0.0002,87168.0,87166.0,0.2294454]
[1765958247003,0.0002,87168.0,87166.0,0.2450354]
[1765958247004,0.001,87167.0,87166.0,0.2450354]
[1765958247386,0.0002,87168.0,87166.0,0.2450354]
[1765958248006,0.0012,87168.0,87166.0,0.2450354]
[1765958252806,0.0012,87168.0,87167.0,0.03288]
[1765958253734,0.0002,87168.0,87167.0,0.01559]
[1765958254124,0.0012,87168.0,87167.0,0.01559]
[1765958257078,0.0012,87168.0,87167.0,0.03288]
[1765958262000,0.0012,87168.0,87167.0,0.01559]
[1765958262381,0.0012,87168.0,87166.0,0.2294454]
[1765958262829,0.01267209,87168.0,87164.0,0.01226567]
[1765958263072,0.0012,87168.0,87165.0,0.01147249]
[1765958263273,0.03966,87165.0,87164.0,0.00079305]
[1765958265402,0.01637,87165.0,87164.0,0.00079305]
[1765958266402,0.02329,87166.0,87164.0,0.01226567]
[1765958266760,0.02293223,87167.0,87164.0,0.01226567]
[1765958267217,0.001,87165.0,87164.0,0.2417165]
[1765958267611,0.01146,87167.0,87165.0,0.22944815]
[1765958267747,0.0002,87168.0,87165.0,0.24092064]
[1765958268292,0.001,87167.0,87165.0,0.24092064]
[1765958269612,0.0002,87168.0,87167.0,0.22944462]
[1765958269776,0.0012,87168.0,87167.0,0.22944462]
[1765958269978,0.0022,87168.0,87165.0,0.01147249]
[1765958270214,0.0012,87168.0,87165.0,0.01147249]
[1765958270412,0.0002,87168.0,87165.0,0.01147249]
[1765958270624,0.001,87167.0,87165.0,0.01147249]
[1765958270800,0.24091748,87167.0,87164.0,0.00079305]
[1765958273076,0.24191748,87167.0,87164.0,0.00079305]
[1765958273248,0.24091748,87167.0,87164.0,0.00079305]
[1765958273692,0.24191748,87167.0,87164.0,0.00079305]
[1765958274546,0.01247223,87167.0,87164.0,0.01226567]
[1765958275147,0.001,87167.0,87165.0,0.22944989]
[1765958275756,0.001,87167.0,87166.0,0.03316]
[1765958275958,0.0002,87168.0,87167.0,0.22944462]
[1765958277278,0.01147117,87175.0,87170.0,0.01147183]
[1765958277692,0.01147131,87174.0,87171.0,0.0114717]
[1765958277932,0.01147117,87175.0,87171.0,0.0114717]
[1765958278523,0.01147117,87175.0,87172.0,0.01147157]
[1765958278927,0.01147117,87175.0,87170.0,0.01147183]
[1765958278928,0.01147131,87174.0,87170.0,0.01147183]
[1765958280236,0.01247131,87174.0,87170.0,0.01147183]
[1765958280441,0.003,87174.0,87171.0,0.0114717]
[1765958280861,0.003,87174.0,87171.0,0.24090416]
[1765958281069,0.003,87174.0,87172.0,0.22942995]
[1765958281687,0.003,87174.0,87171.0,0.24090416]
[1765958282087,0.001,87174.0,87171.0,0.24090416]
[1765958282546,0.002,87174.0,87171.0,0.24090416]
[1765958282888,0.003,87174.0,87171.0,0.24090416]
[1765958283318,0.003,87174.0,87172.0,0.22942909]
[1765958283886,0.003,87174.0,87170.0,0.24090748]
[1765958284087,0.002,87174.0,87171.0,0.0114717]
[1765958284541,0.003,87174.0,87171.0,0.0114717]
[1765958285047,0.001,87174.0,87171.0,0.0114717]
[1765958285624,0.002,87174.0,87171.0,0.0114717]
[1765958285838,0.01147117,87175.0,87171.0,0.0114717]
[1765958286036,0.01147117,87175.0,87170.0,0.01147183]
[1765958286037,0.01147131,87174.0,87170.0,0.01147183]
[1765958286339,0.01447131,87174.0,87170.0,0.01147183]
[1765958286554,0.01347131,87174.0,87170.0,0.01147183]
[1765958286849,0.01347131,87174.0,87171.0,0.0346517]
[1765958286850,0.002,87174.0,87171.0,0.0346517]
[1765958287079,0.001,87175.0,87172.0,0.22942974]
[1765958287461,0.02294221,87176.0,87172.0,0.22942974]
[1765958287883,0.001,87174.0,87172.0,0.24090131]
[1765958288039,0.001,87174.0,87173.0,0.03929]
[1765958288248,0.001,87174.0,87173.0,0.04090287]
[1765958288456,0.001,87174.0,87173.0,0.05237404]
[1765958288640,0.001,87174.0,87173.0,0.02919404]
[1765958288850,0.003,87174.0,87173.0,0.05237404]
[1765958289102,0.00025162,87178.0,87175.0,0.03465117]
[1765958289270,0.01247104,87176.0,87173.0,0.02455548]
[1765958289536,0.002,87174.0,87173.0,0.01308431]
[1765958289712,0.01247104,87176.0,87173.0,0.01308431]
[1765958289713,0.001,87176.0,87174.0,0.24189724]
[1765958289885,0.00025162,87178.0,87177.0,0.2294183]
[1765958290097,0.00025162,87178.0,87177.0,0.2687083]
[1765958290298,0.00025162,87178.0,87177.0,0.27032117]
[1765958290820,0.00025162,87178.0,87177.0,0.33224792]
[1765958290975,0.00025162,87178.0,87177.0,0.38999338]
[1765958291179,0.00125162,87178.0,87177.0,0.38999338]
[1765958291584,0.00125162,87178.0,87177.0,0.27491765]
[1765958291781,0.00125162,87178.0,87177.0,0.38999338]
[1765958291983,0.00125162,87178.0,87177.0,0.27491765]
[1765958291984,0.00325162,87178.0,87177.0,0.27491765]
[1765958292279,0.00225162,87178.0,87177.0,0.38999338]
[1765958292465,0.00025162,87178.0,87177.0,0.38999338]
[1765958293291,0.00025162,87178.0,87177.0,0.39099338]
[1765958293490,0.00025162,87178.0,87177.0,0.39199338]
[1765958295245,0.00025162,87178.0,87177.0,0.68269338]
[1765958299784,0.0002,87189.0,87188.0,0.39305509]
[1765958299995,0.0002,87189.0,87188.0,0.40529784]
[1765958300575,0.0002,87189.0,87188.0,0.42341784]